fUSD/lending_fUSD_20240222
["ID","MTS","AMOUNT","RATE_DAILY","PERIOD"]
[314912016,1708635078463,-1829.04,0.00033287,4]
[314912017,1708635078472,-552.59,0.00033287,4]
[314912018,1708635078482,-1010.16,0.00033287,4]
[314912019,1708635078491,-500.0,0.00033287,4]
[314912020,1708635078500,-503.87,0.00033287,4]
[314912021,1708635078510,-1466.13,0.00033287,4]
[314912022,1708635078519,-770.69,0.00033287,4]
[314912023,1708635078529,-500.0,0.00033287,4]
[314912024,1708635078538,-1490.17,0.00033287,2]
[314912025,1708635078548,-507.34,0.00033287,4]
[314912026,1708635078557,-1118.23,0.00033287,4]
[314912027,1708635078567,-500.0,0.00033287,4]
[314912028,1708635078576,-157.35,0.0003333,2]
[314912029,1708635078586,-1232.83217178,0.00033335,5]
[314912030,1708635078595,-151.89,0.00033416,2]
[314912031,1708635078604,-500.0,0.00033424,4]
[314912032,1708635078614,-500.0,0.00033424,4]
[314912033,1708635078624,-500.0,0.00033424,4]
[314912034,1708635078632,-500.0,0.00033424,4]
[314912035,1708635078642,-500.0,0.00033424,4]
[314912036,1708635078652,-500.0,0.00033424,4]
[314912037,1708635078664,-561.26901109,0.00033424,4]
[314912038,1708635078673,-500.0,0.00033424,4]
[314912039,1708635078683,-500.0,0.00033424,4]
[314912040,1708635078692,-500.0,0.00033424,4]
[314912041,1708635078702,-500.0,0.00033424,4]
[314912042,1708635078712,-543.75686607,0.00033424,4]
[314912043,1708635078721,-500.0,0.00033424,4]
[314912044,1708635078731,-500.0,0.00033424,4]
[314912045,1708635078740,-500.0,0.00033424,4]
[314912046,1708635078751,-500.0,0.00033424,4]
[314912047,1708635078763,-500.0,0.00033424,4]
[314912048,1708635078772,-500.0,0.00033424,4]
[314912049,1708635078781,-500.0,0.00033424,4]
[314912050,1708635078792,-500.0,0.00033424,4]
[314912051,1708635078802,-500.0,0.00033424,4]
[314912052,1708635078811,-500.0,0.00033424,4]
[314912053,1708635078821,-500.0,0.00033424,4]
[314912054,1708635078831,-500.0,0.00033424,4]
[314912055,1708635078841,-500.0,0.00033424,4]
[314912056,1708635078852,-500.0,0.00033424,4]
[314912057,1708635078861,-388.96996637,0.00033424,4]
[314912058,1708635078870,-500.0,0.00033424,4]
[314912059,1708635078880,-1069.76,0.00033424,4]
[314912060,1708635078890,-500.0,0.00033424,4]
[314912061,1708635078899,-500.0,0.00033424,4]
[314912062,1708635078911,-994.15,0.00033424,4]
[314912063,1708635078921,-500.0,0.00033424,4]
[314912064,1708635078929,-500.0,0.00033424,4]
[314912065,1708635078939,-734.37,0.00033424,4]
[314912066,1708635078948,-500.0,0.00033424,4]
[314912067,1708635078957,-500.0,0.00033424,4]
[314912068,1708635078966,-500.0,0.00033424,4]
[314912069,1708635078975,-500.0,0.00033424,4]
[314912070,1708635078985,-500.0,0.00033424,4]
[314912071,1708635078994,-500.0,0.00033424,4]
[314912072,1708635079004,-500.0,0.00033424,4]
[314912073,1708635079014,-500.0,0.00033424,4]
[314912074,1708635079023,-500.0,0.00033424,4]
[314912075,1708635079033,-437.46425035,0.00033424,4]
[314912076,1708635079042,-500.0,0.00033424,4]
[314912077,1708635079051,-500.0,0.00033424,4]
[314912078,1708635079060,-532.98272036,0.00033424,4]
[314912079,1708635079069,-500.0,0.00033424,4]
[314912080,1708635079079,-500.0,0.00033424,4]
[314912081,1708635079088,-500.0,0.00033424,4]
[314912082,1708635079098,-500.0,0.00033424,4]
[314912083,1708635079107,-500.0,0.00033424,4]
[314912084,1708635079117,-500.0,0.00033424,4]
[314912085,1708635079126,-500.0,0.00033424,4]
[314912086,1708635079135,-500.0,0.00033424,4]
[314912087,1708635079144,-500.0,0.00033424,4]
[314912088,1708635079155,-500.0,0.00033424,4]
[314912089,1708635079164,-753.95,0.00033424,4]
[314912090,1708635079173,-500.0,0.00033424,4]
[314912091,1708635079183,-500.0,0.00033424,4]
[314912092,1708635079193,-500.0,0.00033424,4]
[314912093,1708635079203,-720.02,0.00033424,4]
[314912094,1708635079213,-500.0,0.00033424,4]
[314912095,1708635079223,-1000.0,0.00033424,7]
[314912096,1708635079234,-500.0,0.00033424,4]
[314912097,1708635079243,-500.0,0.00033424,4]
[314912098,1708635079253,-500.0,0.00033424,4]
[314912099,1708635079262,-500.0,0.00033424,4]
[314912100,1708635079272,-630.9,0.00033424,4]
[314912101,1708635079281,-565.85,0.00033424,4]
[314912102,1708635079291,-500.0,0.00033424,4]
[314912103,1708635079300,-500.0,0.00033424,4]
[314912104,1708635079310,-514.85,0.00033424,4]
[314912105,1708635079319,-748.94,0.00033424,4]
[314912106,1708635079330,-500.0,0.00033424,4]
[314912107,1708635079339,-500.0,0.00033424,4]
[314912108,1708635079348,-500.0,0.00033424,4]
[314912109,1708635079358,-500.0,0.00033424,4]
[314912110,1708635079368,-500.0,0.00033424,4]
[314912111,1708635079377,-500.0,0.00033424,4]
[314912112,1708635079387,-500.0,0.00033424,4]
[314912113,1708635079397,-500.0,0.00033424,4]
[314912114,1708635079409,-500.0,0.00033424,4]
[314912115,1708635079419,-563.93767362,0.00033424,4]
[314912116,1708635079429,-500.0,0.00033424,2]
[314912117,1708635079440,-500.0,0.00033424,4]
[314912118,1708635079450,-500.0,0.00033424,4]
[314912119,1708635079460,-840.01,0.00033424,4]
[314912120,1708635079470,-500.0,0.00033424,4]
[314912121,1708635079480,-500.0,0.00033424,4]
[314912122,1708635079490,-500.0,0.00033424,4]
[314912123,1708635079500,-500.0,0.00033424,4]
[314912124,1708635079509,-612.93,0.00033424,4]
[314912125,1708635079518,-500.0,0.00033424,4]
[314912126,1708635079527,-500.0,0.00033424,4]
[314912127,1708635079537,-818.33,0.00033424,4]
[314912128,1708635079546,-500.0,0.00033424,4]
[314912129,1708635079556,-585.54,0.00033424,4]
[314912130,1708635079566,-500.0,0.00033424,4]
[314912131,1708635079576,-500.0,0.00033424,4]
[314912132,1708635079586,-773.87,0.00033424,4]
[314912133,1708635079597,-712.63,0.00033424,4]
[314912134,1708635079607,-500.0,0.00033424,4]
[314912135,1708635079616,-538.82,0.00033424,4]
[314912136,1708635079626,-518.63,0.00033424,4]
[314912137,1708635079636,-194.9662773,0.00033424,4]
[314912138,1708635079645,-500.0,0.00033424,4]
[314912139,1708635079655,-500.0,0.00033424,4]
[314912140,1708635079665,-634.02572077,0.00033424,4]
[314912141,1708635079675,-749.66,0.00033424,4]
[314912142,1708635079684,-500.0,0.00033424,4]
[314912143,1708635079694,-500.0,0.00033424,4]
[314912144,1708635079704,-500.0,0.00033424,4]
[314912145,1708635079714,-500.0,0.00033424,4]
[314912146,1708635079724,-500.0,0.00033424,4]
[314912147,1708635079734,-543.92,0.00033424,4]
[314912148,1708635079743,-500.0,0.00033424,4]
[314912149,1708635079757,-500.0,0.00033424,4]
[314912150,1708635079768,-500.0,0.00033424,4]
[314912151,1708635079778,-500.0,0.00033424,4]
[314912152,1708635079788,-500.0,0.00033424,4]
[314912153,1708635079801,-500.0,0.00033424,4]
[314912154,1708635079811,-500.0,0.00033424,4]
[314912155,1708635079820,-500.0,0.00033424,4]
[314912156,1708635079829,-500.0,0.00033424,4]
[314912157,1708635079839,-500.0,0.00033424,4]
[314912158,1708635079848,-500.0,0.00033424,4]
[314912159,1708635079858,-542.35,0.00033424,4]
[314912160,1708635079868,-500.0,0.00033424,4]
[314912161,1708635079878,-500.0,0.00033424,4]
[314912162,1708635079888,-602.91,0.00033424,4]
[314912163,1708635079897,-458.74989132,0.00033424,4]
[314912164,1708635079908,-500.0,0.00033424,4]
[314912165,1708635079917,-500.0,0.00033424,4]
[314912166,1708635079926,-540.84,0.00033424,4]
[314912167,1708635079935,-500.0,0.00033424,4]
[314912168,1708635079944,-500.0,0.00033424,4]
[314912169,1708635079953,-500.0,0.00033424,4]
[314912170,1708635079963,-500.0,0.00033424,4]
[314912171,1708635079972,-500.0,0.00033424,4]
[314912172,1708635079981,-500.0,0.00033424,4]
[314912173,1708635079990,-500.0,0.00033424,4]
[314912174,1708635079999,-713.25,0.00033424,4]
[314912175,1708635080008,-500.0,0.00033424,4]
[314912176,1708635080017,-500.0,0.00033424,4]
[314912177,1708635080027,-500.0,0.00033424,4]
[314912178,1708635080036,-500.0,0.00033424,4]
[314912179,1708635080046,-500.0,0.00033424,4]
[314912180,1708635080056,-500.0,0.00033424,4]
[314912181,1708635080066,-500.0,0.00033424,4]
[314912182,1708635080077,-500.0,0.00033424,4]
[314912183,1708635080093,-1836.57,0.00033424,4]
[314912184,1708635080104,-573.67,0.00033424,4]
[314912185,1708635080115,-167.15774007,0.00033424,4]
[314912186,1708635080130,-532.04,0.00033424,4]
[314912187,1708635080142,-606.69,0.00033424,4]
[314912188,1708635080152,-500.0,0.00033424,4]
[314912189,1708635080164,-500.0,0.00033424,4]
[314912190,1708635080174,-540.07,0.00033424,4]
[314912191,1708635080183,-500.0,0.00033424,4]
[314912192,1708635080192,-500.0,0.00033424,4]
[314912193,1708635080202,-500.0,0.00033424,4]
[314912194,1708635080212,-500.0,0.00033424,4]
[314912195,1708635080223,-500.0,0.00033424,4]
[314912196,1708635080233,-715.77,0.00033424,4]
[314912197,1708635080242,-500.0,0.00033424,4]
[314912198,1708635080252,-500.0,0.00033424,4]
[314912199,1708635080262,-500.0,0.00033424,4]
[314912200,1708635080272,-500.0,0.00033424,4]
[314912201,1708635080282,-500.0,0.00033424,4]
[314912202,1708635080292,-500.0,0.00033424,4]
[314912203,1708635080302,-156.22,0.00033424,4]
[314912204,1708635080312,-500.0,0.00033424,4]
[314912205,1708635080322,-500.0,0.00033424,4]
[314912206,1708635080331,-500.0,0.00033424,4]
[314912207,1708635080342,-500.0,0.00033424,4]
[314912208,1708635080352,-519.14,0.00033424,4]
[314912209,1708635080362,-500.0,0.00033424,4]
[314912210,1708635080372,-500.0,0.00033424,4]
[314912211,1708635080382,-500.0,0.00033424,4]
[314912212,1708635080392,-503.74,0.00033424,4]
[314912213,1708635080402,-500.0,0.00033424,4]
[314912214,1708635080415,-500.0,0.00033424,4]
[314912215,1708635080425,-500.0,0.00033424,4]
[314912216,1708635080434,-500.0,0.00033424,4]
[314912217,1708635080444,-542.16,0.00033424,4]
[314912218,1708635080454,-152.29756949,0.00033424,4]
[314912219,1708635080464,-858.44,0.00033424,4]
[314912220,1708635080473,-500.0,0.00033424,14]
[314912221,1708635080484,-500.0,0.00033424,4]
[314912222,1708635080493,-500.0,0.00033424,4]
[314912223,1708635080504,-621.97,0.00033424,4]
[314912224,1708635080520,-500.0,0.00033424,4]
[314912225,1708635080530,-500.0,0.00033424,4]
[314912226,1708635080542,-500.0,0.00033424,4]
[314912227,1708635080554,-500.0,0.00033424,4]
[314912228,1708635080565,-627.87,0.00033424,4]
[314912229,1708635080576,-500.0,0.00033424,4]
[314912230,1708635080587,-500.0,0.00033424,4]
[314912231,1708635080598,-500.0,0.00033424,4]
[314912232,1708635080611,-2002.64,0.00033424,4]
[314912233,1708635080623,-2266.41,0.00033424,4]
[314912234,1708635080633,-500.0,0.00033424,4]
[314912235,1708635080645,-500.0,0.00033424,4]
[314912236,1708635080658,-500.0,0.00033424,4]
[314912237,1708635080670,-500.0,0.00033424,4]
[314912238,1708635080681,-500.0,0.00033424,4]
[314912239,1708635080692,-500.0,0.00033424,4]
[314912240,1708635080702,-500.0,0.00033424,4]
[314912241,1708635080713,-947.29,0.00033424,4]
[314912242,1708635080724,-500.0,0.00033424,4]
[314912243,1708635080735,-1981.38,0.00033424,4]
[314912244,1708635080745,-500.0,0.00033424,4]
[314912245,1708635080761,-500.0,0.00033424,4]
[314912246,1708635080774,-500.0,0.00033424,4]
[314912247,1708635080786,-500.0,0.00033424,4]
[314912248,1708635080797,-500.0,0.00033424,4]
[314912249,1708635080809,-500.0,0.00033424,4]
[314912250,1708635080820,-500.0,0.00033424,4]
[314912251,1708635080830,-500.0,0.00033424,4]
[314912252,1708635080840,-4201.14,0.00033424,4]
[314912253,1708635080850,-6347.11,0.00033424,4]
[314912254,1708635080859,-500.0,0.00033424,4]
[314912255,1708635080870,-500.0,0.00033424,4]
[314912256,1708635080880,-500.0,0.00033424,4]
[314912257,1708635080891,-711.96,0.00033424,4]
[314912258,1708635080901,-510.45,0.00033424,4]
[314912259,1708635080915,-611.83,0.00033424,4]
[314912260,1708635080924,-500.0,0.00033424,4]
[314912261,1708635080934,-601.75418175,0.00033424,4]
[314912262,1708635080944,-500.0,0.00033424,4]
[314912263,1708635080954,-387.23596093,0.00033424,4]
[314912264,1708635080965,-500.0,0.00033424,4]
[314912265,1708635080975,-500.0,0.00033424,4]
[314912266,1708635080985,-500.0,0.00033424,4]
[314912267,1708635080995,-4462.31,0.00033424,4]
[314912268,1708635081005,-3872.09,0.00033424,4]
[314912269,1708635081015,-500.0,0.00033424,4]
[314912270,1708635081024,-500.0,0.00033424,4]
[314912271,1708635081034,-500.0,0.00033424,4]
[314912272,1708635081044,-500.0,0.00033424,4]
[314912273,1708635081054,-500.0,0.00033424,4]
[314912274,1708635081064,-500.0,0.00033424,4]
[314912275,1708635081073,-2138.94,0.00033424,4]
[314912276,1708635081083,-500.0,0.00033424,4]
[314912277,1708635081093,-677.28,0.00033424,4]
[314912278,1708635081103,-500.0,0.00033424,4]
[314912279,1708635081112,-500.0,0.00033424,4]
[314912280,1708635081122,-500.0,0.00033424,4]
[314912281,1708635081132,-500.0,0.00033424,4]
[314912282,1708635081142,-500.0,0.00033424,4]
[314912283,1708635081152,-981.71,0.00033424,4]
[314912284,1708635081164,-500.0,0.00033424,4]
[314912285,1708635081175,-4200.89,0.00033424,4]
[314912286,1708635081185,-511.16,0.00033424,4]
[314912287,1708635081195,-500.0,0.00033424,4]
[314912288,1708635081205,-500.0,0.00033424,4]
[314912289,1708635081215,-500.0,0.00033424,4]
[314912290,1708635081225,-3628.37,0.00033424,4]
[314912291,1708635081234,-540.9,0.00033424,4]
[314912292,1708635081244,-500.0,0.00033424,4]
[314912293,1708635081254,-500.0,0.00033424,4]
[314912294,1708635081264,-541.66,0.00033424,4]
[314912295,1708635081274,-500.0,0.00033424,4]
[314912296,1708635081284,-500.0,0.00033424,4]
[314912297,1708635081294,-500.0,0.00033424,4]
[314912298,1708635081303,-767.41,0.00033424,4]
[314912299,1708635081313,-15076.9,0.00033424,4]
[314912300,1708635081323,-500.0,0.00033424,4]
[314912301,1708635081332,-4376.47,0.00033424,4]
[314912302,1708635081342,-574.73,0.00033424,4]
[314912303,1708635081351,-639.34,0.00033424,4]
[314912304,1708635081361,-862.76,0.00033424,4]
[314912305,1708635081371,-500.0,0.00033424,4]
[314912306,1708635081381,-500.0,0.00033424,4]
[314912307,1708635081391,-500.0,0.00033424,4]
[314912308,1708635081400,-500.0,0.00033424,4]
[314912309,1708635081411,-379.36987177,0.00033424,4]
[314912310,1708635081422,-500.0,0.00033424,4]
[314912311,1708635081433,-500.0,0.00033424,4]
[314912312,1708635081443,-1671.37,0.00033424,4]
[314912313,1708635081453,-1593.07,0.00033424,4]
[314912314,1708635081463,-500.0,0.00033424,4]
[314912315,1708635081473,-500.0,0.00033424,4]
[314912316,1708635081483,-2257.01,0.00033424,4]
[314912317,1708635081493,-500.0,0.00033424,4]
[314912318,1708635081502,-672.93,0.00033424,4]
[314912319,1708635081513,-5164.55,0.00033424,4]
[314912320,1708635081535,-1138.05,0.00033424,4]
[314912321,1708635081545,-500.0,0.00033424,4]
[314912322,1708635081555,-500.0,0.00033424,4]
[314912323,1708635081565,-768.2,0.00033424,4]
[314912324,1708635081575,-1297.81,0.00033424,4]
[314912325,1708635081584,-522.42,0.00033424,4]
[314912326,1708635081594,-2954.83,0.00033424,4]
[314912327,1708635081604,-1050.5,0.00033424,4]
[314912328,1708635081615,-500.0,0.00033424,4]
[314912329,1708635081624,-804.12,0.00033424,4]
[314912330,1708635081634,-500.0,0.00033424,4]
[314912331,1708635081645,-500.0,0.00033424,4]
[314912332,1708635081655,-1505.96,0.00033424,4]
[314912333,1708635081665,-2103.85,0.00033424,4]
[314912334,1708635081675,-1239.84,0.00033424,4]
[314912335,1708635081686,-1535.88,0.00033424,4]
[314912336,1708635081696,-500.0,0.00033424,4]
[314912337,1708635081706,-500.0,0.00033424,4]
[314912338,1708635081717,-2700.5,0.00033424,4]
[314912339,1708635081727,-500.0,0.00033424,4]
[314912340,1708635081738,-500.0,0.00033424,4]
[314912341,1708635081748,-500.0,0.00033424,4]
[314912342,1708635081763,-500.0,0.00033424,4]
[314912343,1708635081773,-659.64,0.00033424,4]
[314912344,1708635081784,-778.29,0.00033424,4]
[314912345,1708635081793,-500.0,0.00033424,4]
[314912346,1708635081805,-12873.14,0.00033424,4]
[314912347,1708635081815,-799.18,0.00033424,4]
[314912348,1708635081825,-4792.19,0.00033424,4]
[314912349,1708635081835,-591.94,0.00033424,4]
[314912350,1708635081847,-2326.01543084,0.00033424,4]
[314912351,1708635082514,-4460.24456916,0.00033424,4]
[314912352,1708635082525,-576.65,0.00033424,4]
[314912353,1708635082536,-1365.5,0.00033424,4]
[314912354,1708635082547,-5441.22,0.00033424,4]
[314912355,1708635082557,-500.0,0.00033424,4]
[314912356,1708635082567,-500.0,0.00033424,4]
[314912357,1708635082576,-673.19,0.00033424,4]
[314912358,1708635082587,-529.95766323,0.00033424,4]
[314912359,1708635082597,-8303.93,0.00033424,4]
[314912360,1708635082606,-500.0,0.00033424,4]
[314912361,1708635082616,-500.0,0.00033424,4]
[314912362,1708635082627,-649.73,0.00033424,4]
[314912363,1708635082641,-516.06,0.00033424,4]
[314912364,1708635082652,-817.7,0.00033424,4]
[314912365,1708635082665,-1061.83,0.00033424,4]
[314912366,1708635082676,-789.8,0.00033424,4]
[314912367,1708635082686,-500.0,0.00033424,2]
[314912368,1708635082696,-500.0,0.00033424,4]
[314912369,1708635082706,-850.77,0.00033424,4]
[314912370,1708635082716,-500.0,0.00033424,4]
[314912371,1708635082726,-939.84,0.00033424,4]
[314912372,1708635082735,-500.0,0.00033424,4]
[314912373,1708635082745,-500.0,0.00033424,4]
[314912374,1708635082757,-1088.9,0.00033424,4]
[314912375,1708635082768,-500.0,0.00033424,4]
[314912376,1708635082782,-1214.17,0.00033424,4]
[314912377,1708635082792,-3312.71,0.00033424,4]
[314912378,1708635082802,-659.74,0.00033424,4]
[314912379,1708635082812,-586.63,0.00033424,4]
[314912380,1708635082823,-500.0,0.00033424,4]
[314912381,1708635082833,-1706.54,0.00033424,4]
[314912382,1708635082842,-5312.69,0.00033424,4]
[314912383,1708635082852,-500.0,0.00033424,4]
[314912384,1708635082863,-500.0,0.00033424,4]
[314912385,1708635082872,-500.0,0.00033424,4]
[314912386,1708635082883,-1201.84,0.00033424,4]
[314912387,1708635082894,-500.0,0.00033424,4]
[314912388,1708635082904,-2400.54,0.00033424,4]
[314912389,1708635082915,-500.0,0.00033424,4]
[314912390,1708635082925,-4219.99,0.00033424,4]
[314912391,1708635082935,-692.82,0.00033424,4]
[314912392,1708635082945,-542.69,0.00033424,4]
[314912393,1708635082954,-500.0,0.00033424,4]
[314912394,1708635082964,-500.0,0.00033424,4]
[314912395,1708635082974,-1000.0,0.00033424,7]
[314912396,1708635082983,-1116.05,0.00033424,4]
[314912397,1708635082993,-1265.81,0.00033424,4]
[314912398,1708635083002,-596.2,0.00033424,4]
[314912399,1708635083012,-500.0,0.00033424,4]
[314912400,1708635083021,-500.0,0.00033424,4]
[314912401,1708635083031,-500.0,0.00033424,4]
[314912402,1708635083041,-1110.29,0.00033424,4]
[314912403,1708635083050,-652.05,0.00033424,4]
[314912404,1708635083060,-500.0,0.00033424,4]
[314912405,1708635083070,-518.21,0.00033424,4]
[314912406,1708635083080,-500.0,0.00033424,4]
[314912407,1708635083090,-783.92,0.00033424,4]
[314912408,1708635083100,-500.0,0.00033424,4]
[314912409,1708635083110,-612.94,0.00033424,4]
[314912410,1708635083119,-627.01,0.00033424,4]
[314912411,1708635083130,-500.0,0.00033424,4]
[314912412,1708635083139,-500.0,0.00033424,4]
[314912413,1708635083148,-500.0,0.00033424,4]
[314912414,1708635083158,-5079.26,0.00033424,4]
[314912415,1708635083167,-1600.52,0.00033424,4]
[314912416,1708635083176,-513.92,0.00033424,4]
[314912417,1708635083186,-563.23,0.00033424,4]
[314912418,1708635083196,-3754.85,0.00033424,4]
[314912419,1708635083205,-546.11952792,0.00033424,4]
[314912420,1708635083215,-500.0,0.00033424,4]
[314912421,1708635083224,-500.0,0.00033424,4]
[314912422,1708635083234,-542.52,0.00033424,4]
[314912423,1708635083243,-500.0,0.00033424,4]
[314912424,1708635083253,-500.0,0.00033424,4]
[314912425,1708635083263,-564.21,0.00033424,4]
[314912426,1708635083272,-500.0,0.00033424,4]
[314912427,1708635083282,-1073.29,0.00033424,4]
[314912428,1708635083292,-500.0,0.00033424,4]
[314912429,1708635083301,-500.0,0.00033424,4]
[314912430,1708635083311,-528.5,0.00033424,4]
[314912431,1708635083320,-1564.63,0.00033424,4]
[314912432,1708635083330,-1186.11,0.00033424,4]
[314912433,1708635083339,-500.0,0.00033424,4]
[314912434,1708635083359,-500.0,0.00033424,4]
[314912435,1708635083369,-500.0,0.00033424,4]
[314912436,1708635083379,-660.46,0.00033424,4]
[314912437,1708635083389,-500.0,0.00033424,4]
[314912438,1708635083399,-711.07,0.00033424,4]
[314912439,1708635083409,-786.48,0.00033424,4]
[314912440,1708635083419,-606.92,0.00033424,4]
[314912441,1708635083429,-500.0,0.00033424,4]
[314912442,1708635083440,-556.48,0.00033424,4]
[314912443,1708635083450,-648.51,0.00033424,4]
[314912444,1708635083460,-500.0,0.00033424,4]
[314912445,1708635083469,-1225.73,0.00033424,4]
[314912446,1708635083480,-951.04,0.00033424,4]
[314912447,1708635083490,-9061.28,0.00033424,4]
[314912448,1708635083499,-384.61102003,0.00033424,4]
[314912449,1708635083510,-500.0,0.00033424,4]
[314912450,1708635083519,-707.0,0.00033424,4]
[314912451,1708635083529,-3571.58,0.00033424,4]
[314912452,1708635083539,-500.0,0.00033424,4]
[314912453,1708635083549,-500.0,0.00033424,4]
[314912454,1708635083559,-1462.09,0.00033424,4]
[314912455,1708635083569,-586.07,0.00033424,4]
[314912456,1708635083579,-500.0,0.00033424,4]
[314912457,1708635083590,-769.27,0.00033424,4]
[314912458,1708635083600,-2191.4,0.00033424,4]
[314912459,1708635083610,-500.0,0.00033424,4]
[314912460,1708635083620,-500.0,0.00033424,4]
[314912461,1708635083629,-500.0,0.00033424,4]
[314912462,1708635083639,-500.0,0.00033424,4]
[314912463,1708635083649,-500.0,0.00033424,4]
[314912464,1708635083660,-705.27,0.00033424,4]
[314912465,1708635083670,-3622.53,0.00033424,4]
[314912466,1708635083680,-500.0,0.00033424,4]
[314912467,1708635083690,-649.79,0.00033424,4]
[314912468,1708635083700,-327.47963612,0.00033424,4]
[314912469,1708635083710,-7809.56,0.00033424,4]
[314912470,1708635083720,-1718.53,0.00033424,4]
[314912471,1708635083730,-500.0,0.00033424,4]
[314912472,1708635083740,-500.0,0.00033424,4]
[314912473,1708635083752,-536.78799368,0.00033424,4]
[314912474,1708635083767,-663.66,0.00033424,4]
[314912475,1708635083777,-500.0,0.00033424,4]
[314912476,1708635083787,-500.0,0.00033424,4]
[314912477,1708635083798,-565.87,0.00033424,4]
[314912478,1708635083808,-863.66,0.00033424,4]
[314912479,1708635083818,-822.21,0.00033424,4]
[314912480,1708635083828,-500.0,0.00033424,4]
[314912481,1708635083838,-500.0,0.00033424,4]
[314912482,1708635083850,-596.29,0.00033424,4]
[314912483,1708635083861,-621.0,0.00033424,4]
[314912484,1708635083871,-1374.74,0.00033424,4]
[314912485,1708635083881,-500.0,0.00033424,4]
[314912486,1708635083891,-500.0,0.00033424,4]
[314912487,1708635083901,-500.0,0.00033424,4]
[314912488,1708635083914,-500.0,0.00033424,4]
[314912489,1708635083925,-500.0,0.00033424,4]
[314912490,1708635083934,-500.0,0.00033424,4]
[314912491,1708635083944,-3131.59,0.00033424,4]
[314912492,1708635083954,-500.0,0.00033424,4]
[314912493,1708635083964,-1147.26,0.00033424,4]
[314912494,1708635083973,-677.08,0.00033424,4]
[314912495,1708635083982,-3274.02,0.00033424,4]
[314912496,1708635083993,-500.0,0.00033424,4]
[314912497,1708635084003,-999.49,0.00033424,4]
[314912498,1708635084013,-1054.45,0.00033424,4]
[314912499,1708635084022,-500.0,0.00033424,4]
[314912500,1708635084031,-500.0,0.00033424,4]
[314912501,1708635084040,-500.0,0.00033424,4]
[314912502,1708635084049,-866.0,0.00033424,4]
[314912503,1708635084063,-1560.01,0.00033424,4]
[314912504,1708635084073,-865.21,0.00033424,4]
[314912505,1708635084083,-500.0,0.00033424,4]
[314912506,1708635084093,-500.0,0.00033424,4]
[314912507,1708635084102,-673.3,0.00033424,4]
[314912508,1708635084112,-500.0,0.00033424,4]
[314912509,1708635084122,-500.0,0.00033424,4]
[314912510,1708635084132,-500.0,0.00033424,4]
[314912511,1708635084142,-619.0,0.00033424,4]
[314912512,1708635084151,-1829.04,0.00033424,4]
[314912513,1708635084162,-1284.61,0.00033424,4]
[314912514,1708635084172,-552.59,0.00033424,4]
[314912515,1708635084182,-1010.16,0.00033424,4]